fUSD/lending_fUSD_20240618
["ID","MTS","AMOUNT","RATE_DAILY","PERIOD"]
[329821031,1718699450808,-500.0,0.00021917,2]
[329821032,1718699450818,-786.9,0.00021917,2]
[329821033,1718699450830,-1039.44,0.00021917,2]
[329821034,1718699450840,-1235.3,0.00021917,2]
[329821035,1718699450849,-757.32,0.00021917,2]
[329821036,1718699450858,-2606.15,0.00021917,2]
[329821037,1718699450867,-1188.31,0.00021917,2]
[329821038,1718699450878,-2414.67,0.00021917,2]
[329821039,1718699450958,-600.63,0.00021917,2]
[329821040,1718699450967,-528.6069327,0.00021917,2]
[329821041,1718699450977,-500.0,0.00021917,2]
[329821042,1718699450986,-668.0,0.00021917,2]
[329821043,1718699450996,-500.0,0.00021917,2]
[329821044,1718699451005,-500.0,0.00021917,2]
[329821045,1718699451015,-522.16,0.00021917,2]
[329821046,1718699451024,-500.0,0.00021917,2]
[329821047,1718699451034,-2118.46,0.00021917,2]
[329821048,1718699451042,-991.68,0.00021917,2]
[329821049,1718699451051,-908.56,0.00021917,2]
[329821050,1718699451061,-1061.66,0.00021917,2]
[329821051,1718699451070,-684.12,0.00021917,2]
[329821052,1718699451079,-500.0,0.00021917,2]
[329821053,1718699451089,-758.62,0.00021917,2]
[329821054,1718699451098,-500.0,0.00021917,2]
[329821055,1718699451108,-500.0,0.00021917,2]
[329821056,1718699451117,-5461.75,0.00021917,2]
[329821057,1718699451126,-5219.49,0.00021917,2]
[329821058,1718699451136,-3892.59,0.00021917,2]
[329821059,1718699451145,-669.24,0.00021917,2]
[329821060,1718699451154,-500.0,0.00021917,2]
[329821061,1718699451163,-37878.58,0.00021917,2]
[329821062,1718699451173,-5268.21,0.00021917,2]
[329821063,1718699451182,-4037.67,0.00021917,2]
[329821064,1718699451191,-1199.76,0.00021917,2]
[329821065,1718699451200,-500.0,0.00021917,2]
[329821066,1718699451209,-4281.51,0.00021917,2]
[329821067,1718699451218,-1729.37,0.00021917,2]
[329821068,1718699451227,-500.0,0.00021917,2]
[329821069,1718699451236,-500.0,0.00021917,2]
[329821070,1718699451245,-500.0,0.00021917,2]
[329821071,1718699451254,-500.0,0.00021917,2]
[329821072,1718699451264,-500.0,0.00021917,2]
[329821073,1718699451273,-500.0,0.00021917,2]
[329821074,1718699451282,-500.0,0.00021917,2]
[329821075,1718699451291,-500.0,0.00021917,2]
[329821076,1718699451300,-841.1,0.00021917,2]
[329821077,1718699451309,-1052.55,0.00021917,2]
[329821078,1718699451318,-1034.74,0.00021917,2]
[329821079,1718699451328,-500.0,0.00021917,2]
[329821080,1718699451337,-500.0,0.00021917,2]
[329821081,1718699451347,-500.0,0.00021917,2]
[329821082,1718699451356,-500.0,0.00021917,2]
[329821083,1718699451366,-500.0,0.00021917,2]
[329821084,1718699451375,-760.36,0.00021917,2]
[329821085,1718699451383,-26948.0,0.00021917,2]
[329821086,1718699451393,-1030.39,0.00021917,2]
[329821087,1718699451402,-1684.25,0.00021917,2]
[329821088,1718699451411,-698.92,0.00021917,2]
[329821089,1718699451420,-1155.41,0.00021917,2]
[329821090,1718699451430,-961.33,0.00021917,2]
[329821091,1718699451439,-500.0,0.00021917,2]
[329821092,1718699451449,-2524.52,0.00021917,2]
[329821093,1718699451458,-4186.97,0.00021917,2]
[329821094,1718699451467,-500.0,0.00021917,2]
[329821095,1718699451476,-922.51,0.00021917,2]
[329821096,1718699451485,-10252.89,0.00021917,2]
[329821097,1718699451494,-1233.72,0.00021917,2]
[329821098,1718699451504,-6586.13,0.00021917,2]
[329821099,1718699451513,-500.0,0.00021917,2]
[329821100,1718699451522,-500.0,0.00021917,2]
[329821101,1718699451532,-2620.73,0.00021917,2]
[329821102,1718699451541,-1299.08,0.00021917,2]
[329821103,1718699451551,-544.32,0.00021917,2]
[329821104,1718699451560,-794.23,0.00021917,2]
[329821105,1718699451570,-588.59,0.00021917,2]
[329821106,1718699451580,-1393.5,0.00021917,2]
[329821107,1718699451589,-642.33578835,0.00021917,2]
[329821108,1718699451599,-500.0,0.00021917,2]
[329821109,1718699451608,-500.0,0.00021917,2]
[329821110,1718699451618,-1812.07,0.00021917,2]
[329821111,1718699451627,-1404.4,0.00021917,2]
[329821112,1718699451636,-500.0,0.00021917,2]
[329821113,1718699451646,-500.0,0.00021917,2]
[329821114,1718699451655,-7799.92,0.00021917,2]
[329821115,1718699451664,-500.0,0.00021917,2]
[329821116,1718699451673,-672.29,0.00021917,2]
[329821117,1718699451682,-843.39,0.00021917,2]
[329821118,1718699451692,-6048.8,0.00021917,2]
[329821119,1718699451701,-6158.54,0.00021917,2]
[329821120,1718699451711,-895.21,0.00021917,2]
[329821121,1718699451720,-2780.49,0.00021917,2]
[329821122,1718699451729,-500.0,0.00021917,2]
[329821123,1718699451739,-1153.27,0.00021917,2]
[329821124,1718699451748,-500.0,0.00021917,2]
[329821125,1718699451758,-517.58017575,0.00021917,2]
[329821126,1718699451767,-1437.12,0.00021917,2]
[329821127,1718699451776,-1447.08,0.00021917,2]
[329821128,1718699451786,-1491.07,0.00021917,2]
[329821129,1718699451795,-500.0,0.00021917,2]
[329821130,1718699451804,-500.0,0.00021917,2]
[329821131,1718699451814,-563.75842644,0.00021917,2]
[329821132,1718699451823,-502.4975413,0.00021917,2]
[329821133,1718699451834,-2988.55,0.00021917,2]
[329821134,1718699451845,-500.0,0.00021917,2]
[329821135,1718699451855,-500.0,0.00021917,2]
[329821136,1718699451864,-2677.28,0.00021917,2]
[329821137,1718699451875,-2971.53,0.00021917,2]
[329821138,1718699451884,-1530.33,0.00021917,2]
[329821139,1718699451895,-6209.3,0.00021917,2]
[329821140,1718699451905,-6209.3,0.00021917,2]
[329821141,1718699451919,-500.0,0.00021917,2]
[329821142,1718699451930,-6209.3,0.00021917,2]
[329821143,1718699451939,-6209.3,0.00021917,2]
[329821144,1718699451949,-6209.3,0.00021917,2]
[329821145,1718699451959,-6209.3,0.00021917,2]
[329821146,1718699451968,-6209.3,0.00021917,2]
[329821147,1718699451977,-6209.3,0.00021917,2]
[329821148,1718699451986,-6209.3,0.00021917,2]
[329821149,1718699451995,-500.0,0.00021917,2]
[329821150,1718699452005,-6209.3,0.00021917,2]
[329821151,1718699452014,-801.7,0.00021917,2]
[329821152,1718699452023,-6209.3,0.00021917,2]
[329821153,1718699452033,-6209.3,0.00021917,2]
[329821154,1718699452042,-500.0,0.00021917,2]
[329821155,1718699452051,-6209.3,0.00021917,2]
[329821156,1718699452060,-6209.3,0.00021917,2]
[329821157,1718699452069,-6209.3,0.00021917,2]
[329821158,1718699452078,-741.08,0.00021917,2]
[329821159,1718699452088,-6209.3,0.00021917,2]
[329821160,1718699452097,-6209.3,0.00021917,2]
[329821161,1718699452106,-822.52,0.00021917,2]
[329821162,1718699452116,-973.13,0.00021917,2]
[329821163,1718699452125,-4459.16,0.00021917,2]
[329821164,1718699452135,-500.0,0.00021917,2]
[329821165,1718699452144,-2958.39,0.00021917,2]
[329821166,1718699452153,-1254.99,0.00021917,2]
[329821167,1718699452162,-500.0,0.00021917,2]
[329821168,1718699452171,-500.0,0.00021917,2]
[329821169,1718699452181,-1444.11,0.00021917,2]
[329821170,1718699452191,-500.0,0.00021917,2]
[329821171,1718699452200,-2951.88,0.00021917,2]
[329821172,1718699452209,-500.0,0.00021917,2]
[329821173,1718699452218,-1673.02,0.00021917,2]
[329821174,1718699452227,-2358.04,0.00021917,2]
[329821175,1718699452237,-500.0,0.00021917,2]
[329821176,1718699452246,-1074.25,0.00021917,2]
[329821177,1718699452256,-635.22,0.00021917,2]
[329821178,1718699452265,-775.33,0.00021917,2]
[329821179,1718699452274,-3150.03,0.00021917,2]
[329821180,1718699452284,-1220.09,0.00021917,2]
[329821181,1718699452294,-691.45,0.00021917,2]
[329821182,1718699452303,-5658.71,0.00021917,2]
[329821183,1718699452313,-500.0,0.00021917,2]
[329821184,1718699452323,-500.0,0.00021917,2]
[329821185,1718699452332,-500.0,0.00021917,2]
[329821186,1718699452342,-500.0,0.00021917,2]
[329821187,1718699452351,-688.55,0.00021917,2]
[329821188,1718699452362,-1382.8,0.00021917,2]
[329821189,1718699452372,-595.74,0.00021917,2]
[329821190,1718699452381,-1154.81,0.00021917,2]
[329821191,1718699452390,-500.0,0.00021917,2]
[329821192,1718699452400,-500.0,0.00021917,2]
[329821193,1718699452410,-1521.13,0.00021917,2]
[329821194,1718699452419,-29976.6,0.00021917,2]
[329821195,1718699452429,-647.51,0.00021917,2]
[329821196,1718699452439,-2116.2,0.00021917,2]
[329821197,1718699452449,-597.34,0.00021917,2]
[329821198,1718699452459,-500.0,0.00021917,2]
[329821199,1718699452468,-4516.53,0.00021917,2]
[329821200,1718699452478,-2254.77,0.00021917,2]
[329821201,1718699452488,-500.0,0.00021917,2]
[329821202,1718699452497,-500.0,0.00021917,2]
[329821203,1718699452508,-500.0,0.00021917,2]
[329821204,1718699452519,-500.0,0.00021917,2]
[329821205,1718699452530,-500.0,0.00021917,2]
[329821206,1718699452540,-500.0,0.00021917,2]
[329821207,1718699452549,-1809.64,0.00021917,2]
[329821208,1718699452558,-500.0,0.00021917,2]
[329821209,1718699452567,-500.0,0.00021917,2]
[329821210,1718699452578,-500.0,0.00021917,2]
[329821211,1718699452588,-500.0,0.00021917,2]
[329821212,1718699452598,-500.0,0.00021917,2]
[329821213,1718699452608,-574.11837996,0.00021917,2]
[329821214,1718699452618,-643.31,0.00021917,2]
[329821215,1718699452628,-660.24,0.00021917,2]
[329821216,1718699452640,-500.0,0.00021917,2]
[329821217,1718699452649,-500.0,0.00021917,2]
[329821218,1718699452659,-1143.35,0.00021917,2]
[329821219,1718699452669,-1403.48,0.00021917,2]
[329821220,1718699452679,-636.3,0.00021917,2]
[329821221,1718699452688,-500.0,0.00021917,2]
[329821222,1718699452698,-1152.23,0.00021917,2]
[329821223,1718699452708,-2200.29,0.00021917,2]
[329821224,1718699452717,-1870.79,0.00021917,2]
[329821225,1718699452727,-398.64519573,0.00021917,2]
[329821226,1718699452737,-5677.88,0.00021917,2]
[329821227,1718699452747,-1345.93,0.00021917,2]
[329821228,1718699452757,-500.0,0.00021917,2]
[329821229,1718699452766,-1161.01,0.00021917,2]
[329821230,1718699452775,-512.94460442,0.00021917,2]
[329821231,1718699452785,-3351.36,0.00021917,2]
[329821232,1718699452796,-3690.24,0.00021917,2]
[329821233,1718699452807,-1057.64,0.00021917,2]
[329821234,1718699452817,-2077.8,0.00021917,2]
[329821235,1718699452827,-1406.1,0.00021917,2]
[329821236,1718699452839,-500.0,0.00021917,2]
[329821237,1718699452850,-819.23,0.00021917,2]
[329821238,1718699452860,-500.0,0.00021917,2]
[329821239,1718699452871,-1320.45,0.00021917,2]
[329821240,1718699452883,-500.0,0.00021917,2]
[329821241,1718699452894,-1853.58,0.00021917,2]
[329821242,1718699452903,-500.0,0.00021917,2]
[329821243,1718699452917,-1006.75,0.00021917,2]
[329821244,1718699452927,-500.0,0.00021917,2]
[329821245,1718699452937,-1351.19,0.00021917,2]
[329821246,1718699452950,-500.0,0.00021917,2]
[329821247,1718699452960,-500.0,0.00021917,2]
[329821248,1718699452971,-2952.11,0.00021917,2]
[329821249,1718699452981,-2869.89,0.00021917,2]
[329821250,1718699452992,-2234.02,0.00021917,2]
[329821251,1718699453003,-3288.44,0.00021917,2]
[329821252,1718699453013,-500.0,0.00021917,2]
[329821253,1718699453023,-8661.6,0.00021917,2]
[329821254,1718699453033,-1820.15,0.00021917,2]
[329821255,1718699453043,-500.0,0.00021917,2]
[329821256,1718699453054,-500.0,0.00021917,2]
[329821257,1718699453064,-942.84,0.00021917,2]
[329821258,1718699453076,-500.0,0.00021917,2]
[329821259,1718699453087,-1092.55,0.00021917,2]
[329821260,1718699453097,-4107.56,0.00021917,7]
[329821261,1718699453107,-4107.56,0.00021917,7]
[329821262,1718699453117,-5233.08,0.00021917,2]
[329821263,1718699453127,-4107.56,0.00021917,7]
[329821264,1718699453137,-4107.56,0.00021917,7]
[329821265,1718699453146,-4107.56,0.00021917,7]
[329821266,1718699453156,-3078.21,0.00021917,2]
[329821267,1718699453165,-4107.56,0.00021917,7]
[329821268,1718699453175,-266.17219032,0.00021917,2]
[329821269,1718699453185,-4107.56,0.00021917,7]
[329821270,1718699453195,-4107.56,0.00021917,7]
[329821271,1718699453205,-500.0,0.00021917,2]
[329821272,1718699453215,-4107.56,0.00021917,7]
[329821273,1718699453225,-1211.08,0.00021917,2]
[329821274,1718699453234,-4107.56,0.00021917,7]
[329821275,1718699453244,-4107.56,0.00021917,7]
[329821276,1718699453253,-3068.54,0.00021917,2]
[329821277,1718699453263,-4107.56,0.00021917,7]
[329821278,1718699453272,-500.0,0.00021917,2]
[329821279,1718699453281,-4107.56,0.00021917,7]
[329821280,1718699453291,-4107.56,0.00021917,7]
[329821281,1718699453300,-500.0,0.00021917,2]
[329821282,1718699453310,-4107.56,0.00021917,7]
[329821283,1718699453319,-4107.56,0.00021917,7]
[329821284,1718699453329,-4107.56,0.00021917,7]
[329821285,1718699453339,-4107.56,0.00021917,7]
[329821286,1718699453348,-4107.56,0.00021917,7]
[329821287,1718699453358,-4107.56,0.00021917,7]
[329821288,1718699453367,-4107.56,0.00021917,7]
[329821289,1718699453377,-4107.56,0.00021917,7]
[329821290,1718699453387,-4107.56,0.00021917,7]
[329821291,1718699453396,-4107.65940689,0.00021917,7]
[329821292,1718699453406,-1267.15,0.00021917,2]
[329821293,1718699453416,-500.0,0.00021917,2]
[329821294,1718699453426,-500.0,0.00021917,2]
[329821295,1718699453436,-500.0,0.00021917,2]
[329821296,1718699453446,-500.0,0.00021917,2]
[329821297,1718699453455,-500.0,0.00021917,2]
[329821298,1718699453465,-500.0,0.00021917,2]
[329821299,1718699453475,-8425.47,0.00021917,2]
[329821300,1718699453484,-3724.82,0.00021917,2]
[329821301,1718699453494,-850.71,0.00021917,2]
[329821302,1718699453504,-1150.35,0.00021917,2]
[329821303,1718699453514,-500.0,0.00021917,2]
[329821304,1718699453523,-1628.49,0.00021917,2]
[329821305,1718699453533,-4929.59,0.00021917,2]
[329821306,1718699453543,-5214.17,0.00021917,2]
[329821307,1718699453553,-500.0,0.00021917,2]
[329821308,1718699453562,-10089.87,0.00021917,2]
[329821309,1718699453572,-500.0,0.00021917,2]
[329821310,1718699453581,-811.16,0.00021917,2]
[329821311,1718699453592,-900.74,0.00021917,2]
[329821312,1718699453603,-542.21492489,0.00021917,2]
[329821313,1718699453624,-563.25,0.00021917,2]
[329821314,1718699453634,-500.0,0.00021917,2]
[329821315,1718699453644,-500.0,0.00021917,2]
[329821316,1718699453655,-1127.76,0.00021917,2]
[329821317,1718699453665,-500.0,0.00021917,2]
[329821318,1718699453675,-535.07665078,0.00021917,2]
[329821319,1718699453684,-3084.32,0.00021917,2]
[329821320,1718699453694,-1679.03,0.00021917,2]
[329821321,1718699453704,-500.0,0.00021917,2]
[329821322,1718699453714,-500.0,0.00021917,2]
[329821323,1718699453724,-2198.65,0.00021917,2]
[329821324,1718699453733,-500.0,0.00021917,2]
[329821325,1718699453742,-2575.87,0.00021917,2]
[329821326,1718699453752,-1235.92,0.00021917,2]
[329821327,1718699453762,-500.0,0.00021917,2]
[329821328,1718699453772,-1317.98,0.00021917,2]
[329821329,1718699453782,-500.0,0.00021917,2]
[329821330,1718699453792,-515.73435689,0.00021917,2]
[329821331,1718699453802,-500.0,0.00021917,2]
[329821332,1718699453812,-684.95,0.00021917,2]
[329821333,1718699453822,-500.0,0.00021917,2]
[329821334,1718699453833,-529.15,0.00021917,2]
[329821335,1718699453846,-9915.55,0.00021917,2]
[329821336,1718699453855,-2563.82,0.00021917,2]
[329821337,1718699453867,-2436.45,0.00021917,2]
[329821338,1718699453880,-7521.42,0.00021917,2]
[329821339,1718699453889,-3240.55,0.00021917,2]
[329821340,1718699453900,-1442.03,0.00021917,2]
[329821341,1718699453912,-500.0,0.00021917,2]
[329821342,1718699453923,-500.0,0.00021917,2]
[329821343,1718699453933,-500.0,0.00021917,2]
[329821344,1718699453943,-1023.0,0.00021917,2]
[329821345,1718699453953,-2617.22,0.00021917,2]
[329821346,1718699453964,-520.59,0.00021917,2]
[329821347,1718699453974,-4956.98,0.00021917,2]
[329821348,1718699453985,-517.25,0.00021917,2]
[329821349,1718699453995,-13413.17,0.00021917,2]
[329821350,1718699454004,-649.15,0.00021917,2]
[329821351,1718699454014,-6307.0,0.00021917,2]
[329821352,1718699454023,-1188.45,0.00021917,2]
[329821353,1718699454033,-500.0,0.00021917,2]
[329821354,1718699454043,-1348.47,0.00021917,2]
[329821355,1718699454052,-2384.26,0.00021917,2]
[329821356,1718699454062,-4658.85,0.00021917,2]
[329821357,1718699454072,-500.0,0.00021917,2]
[329821358,1718699454081,-500.0,0.00021917,2]
[329821359,1718699454091,-1247.67,0.00021917,2]
[329821360,1718699454100,-3110.59,0.00021917,2]
[329821361,1718699454109,-500.0,0.00021917,2]
[329821362,1718699454119,-2900.9,0.00021917,2]
[329821363,1718699454128,-7215.74,0.00021917,2]
[329821364,1718699454138,-1519.23,0.00021917,2]
[329821365,1718699454148,-500.0,0.00021917,2]
[329821366,1718699454158,-800.36,0.00021917,2]
[329821367,1718699454167,-500.0,0.00021917,2]
[329821368,1718699454177,-4211.04,0.00021917,2]
[329821369,1718699454187,-1421.49,0.00021917,2]
[329821370,1718699454197,-2169.73,0.00021917,2]
[329821371,1718699454207,-500.0,0.00021917,2]
[329821372,1718699454217,-500.0,0.00021917,2]
[329821373,1718699454227,-2365.0,0.00021917,2]
[329821374,1718699454237,-500.0,0.00021917,2]
[329821375,1718699454247,-11574.9,0.00021917,2]
[329821376,1718699454257,-500.0,0.00021917,2]
[329821377,1718699454266,-699.89,0.00021917,2]
[329821378,1718699454276,-2226.08,0.00021917,2]
[329821379,1718699454286,-500.0,0.00021917,2]
[329821380,1718699454296,-500.0,0.00021917,2]
[329821381,1718699454306,-2320.34,0.00021917,2]
[329821382,1718699454315,-500.0,0.00021917,2]
[329821383,1718699454326,-13386.37,0.00021917,2]
[329821384,1718699454335,-4221.61,0.00021917,2]
[329821385,1718699454345,-500.0,0.00021917,2]
[329821386,1718699454355,-1141.69,0.00021917,2]
[329821387,1718699454365,-500.0,0.00021917,2]
[329821388,1718699454375,-6079.51,0.00021917,2]
[329821389,1718699454385,-500.0,0.00021917,2]
[329821390,1718699454395,-2885.16,0.00021917,2]
[329821391,1718699454406,-275.8240398,0.00021917,2]
[329821392,1718699454614,-500.0,0.00021917,2]
[329821393,1718699454624,-597.94,0.00021917,2]
[329821394,1718699454634,-631.9,0.00021917,2]
[329821395,1718699454643,-500.0,0.00021917,2]
[329821396,1718699454653,-604.46,0.00021917,2]
[329821397,1718699454663,-500.0,0.00021917,2]
[329821398,1718699454672,-2610.2,0.00021917,2]
[329821399,1718699454682,-2510.15,0.00021917,2]
[329821400,1718699454692,-500.0,0.00021917,2]
[329821401,1718699454702,-500.0,0.00021917,2]
[329821402,1718699454712,-1852.09,0.00021917,2]
[329821403,1718699454722,-546.01,0.00021917,2]
[329821404,1718699454731,-783.41,0.00021917,2]
[329821405,1718699454740,-622.1,0.00021917,2]
[329821406,1718699454749,-500.0,0.00021917,2]
[329821407,1718699454760,-1497.23,0.00021917,2]
[329821408,1718699454769,-769.35,0.00021917,2]
[329821409,1718699454778,-500.0,0.00021917,2]
[329821410,1718699454787,-2424.9,0.00021917,2]
[329821411,1718699454797,-4634.99,0.00021917,2]
[329821412,1718699454806,-500.0,0.00021917,2]
[329821413,1718699454815,-3329.51,0.00021917,2]
[329821414,1718699454825,-1312.61,0.00021917,2]
[329821415,1718699454836,-2026.35,0.00021917,2]
[329821416,1718699454847,-909.3,0.00021917,2]
[329821417,1718699454856,-950.88,0.00021917,2]
[329821418,1718699454865,-500.0,0.00021917,2]
[329821419,1718699454875,-3751.26,0.00021917,2]
[329821420,1718699454885,-500.0,0.00021917,2]
[329821421,1718699454895,-533.95,0.00021917,2]
[329821422,1718699454903,-500.0,0.00021917,2]
[329821423,1718699454913,-500.0,0.00021917,2]
[329821424,1718699454924,-875.05,0.00021917,2]
[329821425,1718699454934,-1218.23,0.00021917,2]
[329821426,1718699454943,-500.0,0.00021917,2]
[329821427,1718699454953,-453.91,0.00021918,2]
[329821428,1718699454963,-250.0,0.00021918,2]
[329821429,1718699454973,-553.1,0.00021918,2]
[329821430,1718699454982,-2117.757162,0.00021918,2]
[329821431,1718699454992,-7369.05,0.00021927,2]
[329821432,1718699455001,-2241.0,0.00022,2]
[329821433,1718699455011,-16000.0,0.00022,2]
[329821434,1718699455021,-500.0,0.00022,2]
[329821435,1718699455031,-500.0,0.00022,2]
[329821436,1718699455042,-500.0,0.00022,2]
[329821437,1718699455052,-500.0,0.00022,2]
[329821438,1718699455061,-500.0,0.00022,2]
[329821439,1718699455071,-500.0,0.00022,2]
[329821440,1718699455080,-500.0,0.00022,2]
[329821441,1718699455089,-500.0,0.00022,2]
[329821442,1718699455098,-500.0,0.00022,2]
[329821443,1718699455115,-500.0,0.00022,2]
[329821444,1718699455124,-500.0,0.00022,2]
[329821445,1718699455133,-500.0,0.00022,2]
[329821446,1718699455142,-500.0,0.00022,2]
[329821447,1718699455152,-500.0,0.00022,2]
[329821448,1718699455162,-500.0,0.00022,2]
[329821449,1718699455171,-500.0,0.00022,2]
[329821450,1718699455180,-500.0,0.00022,2]
[329821451,1718699455194,-500.0,0.00022,2]
[329821452,1718699455203,-500.0,0.00022,2]
[329821453,1718699455213,-500.0,0.00022,2]
[329821454,1718699455222,-500.0,0.00022,2]
[329821455,1718699455231,-500.0,0.00022,2]
[329821456,1718699455240,-500.0,0.00022,2]
[329821457,1718699455250,-500.0,0.00022,2]
[329821458,1718699455259,-500.0,0.00022,2]
[329821459,1718699455268,-500.0,0.00022,2]
[329821460,1718699455277,-500.0,0.00022,2]
[329821461,1718699455287,-500.0,0.00022,2]
[329821462,1718699455296,-500.0,0.00022,2]
[329821463,1718699455306,-500.0,0.00022,2]
[329821464,1718699455316,-500.0,0.00022,2]
[329821465,1718699455326,-500.0,0.00022,2]
[329821466,1718699455335,-500.0,0.00022,2]
[329821467,1718699455344,-500.0,0.00022,2]
[329821468,1718699455353,-500.0,0.00022,2]
[329821469,1718699455363,-500.0,0.00022,2]
[329821470,1718699455372,-500.0,0.00022,2]
[329821471,1718699455382,-500.0,0.00022,2]
[329821472,1718699455391,-500.0,0.00022,2]
[329821473,1718699455400,-500.0,0.00022,2]
[329821474,1718699455410,-500.0,0.00022,2]
[329821475,1718699455420,-500.0,0.00022,2]
[329821476,1718699455430,-500.0,0.00022,2]
[329821477,1718699455440,-500.0,0.00022,2]
[329821478,1718699455449,-500.0,0.00022,2]
[329821479,1718699455459,-500.0,0.00022,2]
[329821480,1718699455469,-500.0,0.00022,2]
[329821481,1718699455479,-500.0,0.00022,2]
[329821482,1718699455488,-500.0,0.00022,2]
[329821483,1718699455498,-500.0,0.00022,2]
[329821484,1718699455507,-500.0,0.00022,2]
[329821485,1718699455517,-500.0,0.00022,2]
[329821486,1718699455527,-986.132889,0.00022011,2]
[329821487,1718699455537,-500.0,0.00022013,2]
[329821488,1718699455547,-200.0,0.00022013,2]
[329821489,1718699455557,-500.0,0.00022013,2]
[329821490,1718699455566,-200.0,0.00022014,2]
[329821491,1718699455575,-1000.0,0.00022014,2]
[329821492,1718699455585,-500.0,0.00022014,2]
[329821493,1718699455595,-500.0,0.00022014,2]
[329821494,1718699455610,-200.0,0.00022014,2]
[329821495,1718699455630,-715.37566871,0.00022022,2]
[329821496,1718699455640,-6209.3,0.00022099,3]
[329821497,1718699455650,-6209.3,0.00022099,3]
[329821498,1718699455660,-90204.49061674,0.000221,5]
[329821499,1718699455670,-250000.0,0.000221,2]
[329821500,1718699455679,-150.0,0.000221,3]
[329821501,1718699455690,-150.0,0.000221,3]
[329821502,1718699455699,-151.0,0.00022113,2]
[329821503,1718699455710,-223.82,0.0002217,15]
[329821504,1718699455719,-356.0,0.0002218,2]
[329821505,1718699455729,-302.0,0.0002218,2]
[329821506,1718699455739,-150.5,0.0002218,15]
[329821507,1718699455748,-7433.82,0.00022183,2]
[329821508,1718699455758,-2117.757162,0.00022188,2]
[329821509,1718699455768,-791.61101714,0.00022189,2]
[329821510,1718699455777,-1105.09321305,0.00022189,2]
[329821511,1718699455786,-155.64076621,0.00022189,2]
[329821512,1718699455796,-159.73084833,0.00022189,2]
[329821513,1718699455805,-205.87538729,0.00022189,2]
[329821514,1718699455815,-155.0,0.00022189,2]
[329821515,1718699455824,-792.73133039,0.00022189,2]
[329821516,1718699455838,-276598.94952911,0.0002219,7]
[329821517,1718699457010,-760.44,0.00021907,3]
[329821518,1718699457020,-1195.57080635,0.00021917,2]
[329821519,1718699457057,-279.82539136,0.00021917,2]
[329821520,1718699457403,-2068.50380229,0.00021917,2]
[329821521,1718699457412,-623.36,0.00021917,2]
[329821522,1718699457422,-500.0,0.00021917,2]
[329821523,1718699457431,-500.0,0.00022,2]
[329821524,1718699457440,-500.0,0.00022,2]
[329821525,1718699457450,-500.0,0.00022,2]
[329821526,1718699457459,-500.0,0.00022,2]
[329821527,1718699457468,-500.0,0.00022,2]
[329821528,1718699457477,-500.0,0.00022,2]
[329821529,1718699457487,-500.0,0.00022,2]
[329821530,1718699457503,-500.0,0.00022,2]